[Event "Late-Titled-Tuesday-Blitz-March-05-2024"]
[Site "Chess.com"]
[Date "2024.03.05"]
[Round "7"]
[White "HansOnTwitch"]
[Black "VladimirKramnik"]
[Result "1/2-1/2"]
[WhiteElo "3113"]
[BlackElo "2989"]
[TimeControl "180+1"]
[EndTime "15:15:49 PST"]
[Termination "Game drawn - insufficient material"]

1. e4 {[%clk 0:03:00.9]} 1... e6 {[%clk 0:02:59.8]} 2. d4 {[%clk 0:03:00.4]}
2... d5 {[%clk 0:03:00.1]} 3. Nc3 {[%clk 0:02:53.2]} 3... Nf6 {[%clk 0:02:59.7]}
4. e5 {[%clk 0:02:53.1]} 4... Nfd7 {[%clk 0:02:59.8]} 5. f4 {[%clk 0:02:53.8]}
5... c5 {[%clk 0:02:59.9]} 6. Nf3 {[%clk 0:02:54.3]} 6... Nc6 {[%clk 0:02:58.2]}
7. Be3 {[%clk 0:02:50]} 7... cxd4 {[%clk 0:02:57.6]} 8. Nxd4 {[%clk 0:02:50.9]}
8... Bc5 {[%clk 0:02:57.5]} 9. Qd2 {[%clk 0:02:49]} 9... Bxd4 {[%clk 0:02:57.5]}
10. Bxd4 {[%clk 0:02:49]} 10... Nxd4 {[%clk 0:02:57.5]} 11. Qxd4 {[%clk
0:02:49.4]} 11... Qb6 {[%clk 0:02:58]} 12. Qxb6 {[%clk 0:02:46.7]} 12... Nxb6
{[%clk 0:02:57.8]} 13. Bd3 {[%clk 0:02:47.4]} 13... Bd7 {[%clk 0:02:54.5]} 14.
a4 {[%clk 0:02:47.1]} 14... Rc8 {[%clk 0:02:48]} 15. Nb5 {[%clk 0:02:35.5]}
15... Ke7 {[%clk 0:02:24.4]} 16. b3 {[%clk 0:02:28.1]} 16... a5 {[%clk
0:01:52.4]} 17. Nd4 {[%clk 0:02:24.7]} 17... Bc6 {[%clk 0:01:48.7]} 18. Kd2
{[%clk 0:02:22.1]} 18... Nd7 {[%clk 0:01:49.3]} 19. Rae1 {[%clk 0:02:17.4]}
19... Nc5 {[%clk 0:01:48.7]} 20. f5 {[%clk 0:02:12.8]} 20... Bd7 {[%clk
0:01:41]} 21. g4 {[%clk 0:02:04.9]} 21... h5 {[%clk 0:01:36.1]} 22. h3 {[%clk
0:02:04.9]} 22... Ne4+ {[%clk 0:01:25.9]} 23. Bxe4 {[%clk 0:02:01.4]} 23... dxe4
{[%clk 0:01:25.8]} 24. Ke3 {[%clk 0:01:45.5]} 24... Rc3+ {[%clk 0:01:13.2]} 25.
Kf4 {[%clk 0:01:45.5]} 25... Bc6 {[%clk 0:01:00.6]} 26. g5 {[%clk 0:01:42.1]}
26... Rd8 {[%clk 0:00:38]} 27. f6+ {[%clk 0:01:38.1]} 27... Kf8 {[%clk 0:00:38]}
28. Nxc6 {[%clk 0:01:30.7]} 28... bxc6 {[%clk 0:00:37.2]} 29. Re2 {[%clk
0:01:20.3]} 29... e3 {[%clk 0:00:34]} 30. Rhe1 {[%clk 0:00:54]} 30... Rd2 {[%clk
0:00:25.9]} 31. Rxe3 {[%clk 0:00:48.7]} 31... Rcxc2 {[%clk 0:00:26.1]} 32. Re4
{[%clk 0:00:32.8]} 32... c5 {[%clk 0:00:25.6]} 33. Rc4 {[%clk 0:00:25.9]} 33...
Rxc4+ {[%clk 0:00:22.5]} 34. bxc4 {[%clk 0:00:26.8]} 34... Rd4+ {[%clk
0:00:18.6]} 35. Ke3 {[%clk 0:00:19.3]} 35... gxf6 {[%clk 0:00:16.5]} 36. exf6
{[%clk 0:00:17.7]} 36... Kg8 {[%clk 0:00:14.1]} 37. Rb1 {[%clk 0:00:02.7]} 37...
Rxc4 {[%clk 0:00:13.7]} 38. Rb5 {[%clk 0:00:03.1]} 38... Rxa4 {[%clk 0:00:12]}
39. Rxc5 {[%clk 0:00:03.6]} 39... Kh7 {[%clk 0:00:11.8]} 40. Rc8 {[%clk
0:00:03.9]} 40... Kg6 {[%clk 0:00:10.8]} 41. Rg8+ {[%clk 0:00:04]} 41... Kf5
{[%clk 0:00:10.9]} 42. Rg7 {[%clk 0:00:04.6]} 42... h4 {[%clk 0:00:05.5]} 43.
Kd3 {[%clk 0:00:02.2]} 43... Rb4 {[%clk 0:00:04.7]} 44. Rxf7 {[%clk 0:00:02.3]}
44... Kxg5 {[%clk 0:00:04]} 45. Ra7 {[%clk 0:00:02.3]} 45... Kxf6 {[%clk
0:00:03.1]} 46. Rxa5 {[%clk 0:00:02.7]} 46... Rb3+ {[%clk 0:00:03.6]} 47. Ke4
{[%clk 0:00:03.4]} 47... Rxh3 {[%clk 0:00:04.1]} 48. Kf4 {[%clk 0:00:04.1]}
48... Rh1 {[%clk 0:00:04.3]} 49. Kg4 {[%clk 0:00:04.5]} 49... e5 {[%clk
0:00:03.4]} 50. Ra6+ {[%clk 0:00:04.7]} 50... Ke7 {[%clk 0:00:03.7]} 51. Kf5
{[%clk 0:00:05.4]} 51... Re1 {[%clk 0:00:03.2]} 52. Rh6 {[%clk 0:00:04.8]} 52...
e4 {[%clk 0:00:01.3]} 53. Kf4 {[%clk 0:00:04.9]} 53... e3 {[%clk 0:00:01.6]} 54.
Kf3 {[%clk 0:00:04.9]} 54... e2 {[%clk 0:00:01.8]} 55. Rxh4 {[%clk 0:00:04.1]}
55... Rf1+ {[%clk 0:00:01.8]} 56. Kxe2 {[%clk 0:00:04.5]} 56... Rf6 {[%clk
0:00:02.5]} 57. Re4+ {[%clk 0:00:04.7]} 57... Re6 {[%clk 0:00:02.8]} 58. Rxe6+
{[%clk 0:00:05.1]} 58... Kxe6 {[%clk 0:00:03]} 1/2-1/2

[Event "Late-Titled-Tuesday-Blitz-March-05-2024"]
[Site "Chess.com"]
[Date "2024.03.05"]
[Round "7"]
[White "titomagno_64"]
[Black "ural58"]
[Result "1-0"]
[WhiteElo "2340"]
[BlackElo "2514"]
[TimeControl "180+1"]
[EndTime "15:15:50 PST"]
[Termination "titomagno_64 won on time"]

1. d4 {[%clk 0:03:00.9]} 1... d5 {[%clk 0:02:59.2]} 2. c4 {[%clk 0:03:01.1]}
2... e5 {[%clk 0:02:58.9]} 3. dxe5 {[%clk 0:02:57.1]} 3... d4 {[%clk 0:02:59]}
4. Nf3 {[%clk 0:02:53.9]} 4... Nc6 {[%clk 0:02:58.9]} 5. a3 {[%clk 0:02:54.5]}
5... g6 {[%clk 0:02:55.9]} 6. Bg5 {[%clk 0:02:50.4]} 6... f6 {[%clk 0:02:41.8]}
7. exf6 {[%clk 0:02:46.7]} 7... Nxf6 {[%clk 0:02:41.6]} 8. e3 {[%clk 0:02:33.5]}
8... h6 {[%clk 0:01:57.4]} 9. Bxf6 {[%clk 0:02:22.8]} 9... Qxf6 {[%clk
0:01:58.3]} 10. Nxd4 {[%clk 0:02:14.7]} 10... Nxd4 {[%clk 0:01:57.9]} 11. Qxd4
{[%clk 0:02:15.3]} 11... Qxd4 {[%clk 0:01:56.6]} 12. exd4 {[%clk 0:02:16.2]}
12... Bg7 {[%clk 0:01:56.5]} 13. Bd3 {[%clk 0:02:11.3]} 13... O-O {[%clk
0:01:53.3]} 14. d5 {[%clk 0:01:44.5]} 14... Bxb2 {[%clk 0:01:52.4]} 15. Ra2
{[%clk 0:01:45.2]} 15... Re8+ {[%clk 0:01:45.5]} 16. Be2 {[%clk 0:01:27.3]}
16... Bd4 {[%clk 0:01:27.5]} 17. O-O {[%clk 0:01:27]} 17... Bf5 {[%clk
0:01:24.3]} 18. Bf3 {[%clk 0:01:19.3]} 18... Rad8 {[%clk 0:01:10.7]} 19. Rd2
{[%clk 0:01:04.9]} 19... Bf6 {[%clk 0:01:06.2]} 20. c5 {[%clk 0:00:58.3]} 20...
b6 {[%clk 0:00:58.7]} 21. cxb6 {[%clk 0:00:52.2]} 21... axb6 {[%clk 0:00:59.6]}
22. g4 {[%clk 0:00:37.7]} 22... Bc8 {[%clk 0:00:51.6]} 23. Rc2 {[%clk
0:00:34.3]} 23... Re7 {[%clk 0:00:49.1]} 24. Nc3 {[%clk 0:00:30.7]} 24... Ba6
{[%clk 0:00:47.6]} 25. Rd1 {[%clk 0:00:28.6]} 25... Be5 {[%clk 0:00:40.8]} 26.
Ne4 {[%clk 0:00:25.1]} 26... Rf8 {[%clk 0:00:35.5]} 27. Kg2 {[%clk 0:00:23.9]}
27... Rf4 {[%clk 0:00:34.5]} 28. d6 {[%clk 0:00:21.3]} 28... cxd6 {[%clk
0:00:34]} 29. Nxd6 {[%clk 0:00:21.1]} 29... Kg7 {[%clk 0:00:19.3]} 30. a4 {[%clk
0:00:13.7]} 30... Rb4 {[%clk 0:00:12.1]} 31. Ra2 {[%clk 0:00:11.5]} 31... Re6
{[%clk 0:00:09.6]} 32. Ne4 {[%clk 0:00:09.4]} 32... h5 {[%clk 0:00:06.9]} 33.
gxh5 {[%clk 0:00:08.9]} 33... gxh5 {[%clk 0:00:07.1]} 34. Ng3 {[%clk 0:00:09.5]}
34... h4 {[%clk 0:00:06.5]} 35. Nf5+ {[%clk 0:00:10]} 35... Kf6 {[%clk
0:00:06.7]} 36. Ne3 {[%clk 0:00:10.5]} 36... Bf4 {[%clk 0:00:06.1]} 37. Nd5+
{[%clk 0:00:10.2]} 37... Ke5 {[%clk 0:00:05.6]} 38. Nxb4 {[%clk 0:00:10.9]}
38... Rg6+ {[%clk 0:00:05.6]} 39. Kh1 {[%clk 0:00:10.5]} 39... Bc4 {[%clk
0:00:06.1]} 40. Rc2 {[%clk 0:00:09.6]} 40... Bb3 {[%clk 0:00:06.5]} 41. Re1+
{[%clk 0:00:10.2]} 41... Kf5 {[%clk 0:00:06]} 42. Rb2 {[%clk 0:00:10.6]} 42...
Bxa4 {[%clk 0:00:05.8]} 43. Nd3 {[%clk 0:00:10]} 43... Bc7 {[%clk 0:00:04.5]}
44. Be4+ {[%clk 0:00:10.5]} 44... Kf6 {[%clk 0:00:04]} 45. Bxg6 {[%clk
0:00:10.8]} 45... Kxg6 {[%clk 0:00:03.6]} 46. Rg1+ {[%clk 0:00:10.6]} 46... Kf5
{[%clk 0:00:03.4]} 47. f3 {[%clk 0:00:11.2]} 47... Bc6 {[%clk 0:00:01.8]} 48.
Rf2 {[%clk 0:00:10]} 48... b5 {[%clk 0:00:02]} 49. Nb4 {[%clk 0:00:09.8]} 49...
Bb7 {[%clk 0:00:01.3]} 50. Rc1 {[%clk 0:00:09.7]} 50... Bb6 {[%clk 0:00:01.7]}
51. Rff1 {[%clk 0:00:09.8]} 51... Be3 {[%clk 0:00:01.7]} 52. Rce1 {[%clk
0:00:08.7]} 52... Bd2 {[%clk 0:00:01.8]} 53. Rb1 {[%clk 0:00:08]} 53... Kf4
{[%clk 0:00:01.7]} 54. Nd3+ {[%clk 0:00:07.2]} 54... Ke3 {[%clk 0:00:02]} 55.
Ne5 {[%clk 0:00:06.6]} 1-0

[Event "Late-Titled-Tuesday-Blitz-March-05-2024"]
[Site "Chess.com"]
[Date "2024.03.05"]
[Round "7"]
[White "ventdelest"]
[Black "rikchessmx"]
[Result "0-1"]
[WhiteElo "2076"]
[BlackElo "2298"]
[TimeControl "180+1"]
[EndTime "15:15:52 PST"]
[Termination "rikchessmx won on time"]

1. e4 {[%clk 0:02:57.8]} 1... e5 {[%clk 0:02:54.4]} 2. Nf3 {[%clk 0:02:57]} 2...
Nc6 {[%clk 0:02:55.3]} 3. Bc4 {[%clk 0:02:56.8]} 3... Bc5 {[%clk 0:02:55]} 4. d3
{[%clk 0:02:57.1]} 4... d6 {[%clk 0:02:55]} 5. c3 {[%clk 0:02:57.7]} 5... Qf6
{[%clk 0:02:54.5]} 6. Nbd2 {[%clk 0:02:54]} 6... Nge7 {[%clk 0:02:48.3]} 7. Nf1
{[%clk 0:02:53.4]} 7... Ng6 {[%clk 0:02:48.4]} 8. Ng3 {[%clk 0:02:48.9]} 8...
Nf4 {[%clk 0:02:38.4]} 9. O-O {[%clk 0:02:45.1]} 9... Bg4 {[%clk 0:02:37]} 10.
h3 {[%clk 0:02:43]} 10... Nxh3+ {[%clk 0:02:36.6]} 11. gxh3 {[%clk 0:02:33.6]}
11... Bxf3 {[%clk 0:02:36.2]} 12. Qd2 {[%clk 0:02:30.4]} 12... h6 {[%clk
0:02:33.1]} 13. Kh2 {[%clk 0:02:22.3]} 13... O-O {[%clk 0:02:28.2]} 14. b4
{[%clk 0:02:21.5]} 14... Bb6 {[%clk 0:02:26.5]} 15. a4 {[%clk 0:02:16.4]} 15...
a5 {[%clk 0:02:25.8]} 16. b5 {[%clk 0:02:14.7]} 16... Ne7 {[%clk 0:02:25.5]} 17.
Bb3 {[%clk 0:02:10.1]} 17... Ng6 {[%clk 0:02:24.2]} 18. Nf5 {[%clk 0:02:04.3]}
18... Nh4 {[%clk 0:02:11.4]} 19. Nxh4 {[%clk 0:01:50.4]} 19... Qxh4 {[%clk
0:02:10.5]} 20. d4 {[%clk 0:01:50.7]} 20... exd4 {[%clk 0:02:04.7]} 21. cxd4
{[%clk 0:01:49.4]} 21... Bxe4 {[%clk 0:02:04.6]} 22. Rg1 {[%clk 0:01:43.2]}
22... Bg6 {[%clk 0:02:00.8]} 23. Rg4 {[%clk 0:01:40]} 23... Qf6 {[%clk 0:01:56]}
24. Rf4 {[%clk 0:01:36.1]} 24... Qe7 {[%clk 0:01:51.2]} 25. Bb2 {[%clk
0:01:34.4]} 25... Kh7 {[%clk 0:01:50.8]} 26. Rg1 {[%clk 0:01:33]} 26... Rae8
{[%clk 0:01:49.2]} 27. Rfg4 {[%clk 0:01:18.8]} 27... Qe2 {[%clk 0:01:45]} 28.
Qc3 {[%clk 0:00:57.9]} 28... Qxf2+ {[%clk 0:01:30.3]} 29. R1g2 {[%clk
0:00:57.7]} 29... Qf6 {[%clk 0:01:29.9]} 30. Bc2 {[%clk 0:00:52.3]} 30... Re7
{[%clk 0:00:54.2]} 31. Qg3 {[%clk 0:00:36.1]} 31... d5 {[%clk 0:00:43.4]} 32.
Bxg6+ {[%clk 0:00:33.5]} 32... fxg6 {[%clk 0:00:43.3]} 33. Rxg6 {[%clk
0:00:33.4]} 33... Qf4 {[%clk 0:00:39.5]} 34. Qxf4 {[%clk 0:00:24.7]} 34... Rxf4
{[%clk 0:00:38.8]} 35. Ba3 {[%clk 0:00:21.1]} 35... Ref7 {[%clk 0:00:36]} 36.
Bc5 {[%clk 0:00:20]} 36... R4f6 {[%clk 0:00:32.6]} 37. Rxf6 {[%clk 0:00:17.5]}
37... Rxf6 {[%clk 0:00:32.6]} 38. Re2 {[%clk 0:00:16.4]} 38... Bxc5 {[%clk
0:00:27.1]} 39. dxc5 {[%clk 0:00:17.3]} 39... c6 {[%clk 0:00:26.2]} 40. b6
{[%clk 0:00:15.6]} 40... Rf7 {[%clk 0:00:25.8]} 41. Re8 {[%clk 0:00:14.7]} 41...
Rd7 {[%clk 0:00:23.1]} 42. Kg2 {[%clk 0:00:13.6]} 42... d4 {[%clk 0:00:21.4]}
43. Kf2 {[%clk 0:00:13.7]} 43... d3 {[%clk 0:00:20.6]} 44. Ke1 {[%clk
0:00:13.9]} 44... Kg6 {[%clk 0:00:19.5]} 45. Ra8 {[%clk 0:00:13]} 45... Rd5
{[%clk 0:00:17.6]} 46. Rxa5 {[%clk 0:00:12.9]} 46... Kf5 {[%clk 0:00:15.9]} 47.
Kd2 {[%clk 0:00:13.4]} 47... Ke4 {[%clk 0:00:15.6]} 48. Ra7 {[%clk 0:00:13.1]}
48... Rxc5 {[%clk 0:00:15.7]} 49. Rxb7 {[%clk 0:00:13.2]} 49... Rc2+ {[%clk
0:00:15.9]} 50. Kd1 {[%clk 0:00:13.2]} 50... Ra2 {[%clk 0:00:15.6]} 51. Ra7
{[%clk 0:00:10.5]} 51... Ke3 {[%clk 0:00:13.5]} 52. Re7+ {[%clk 0:00:10.2]}
52... Kd4 {[%clk 0:00:13.6]} 53. b7 {[%clk 0:00:08.8]} 53... Kc3 {[%clk
0:00:13.7]} 54. Ke1 {[%clk 0:00:05]} 54... Rb2 {[%clk 0:00:10.4]} 55. Rd7 {[%clk
0:00:02.5]} 55... c5 {[%clk 0:00:09.6]} 0-1

[Event "Late-Titled-Tuesday-Blitz-March-05-2024"]
[Site "Chess.com"]
[Date "2024.03.05"]
[Round "7"]
[White "wadsy27"]
[Black "GMAkobianSTL"]
[Result "0-1"]
[WhiteElo "2637"]
[BlackElo "2816"]
[TimeControl "180+1"]
[EndTime "15:16:00 PST"]
[Termination "GMAkobianSTL won by resignation"]

1. Nf3 {[%clk 0:03:00.9]} 1... d5 {[%clk 0:03:00]} 2. g3 {[%clk 0:03:01.4]} 2...
c5 {[%clk 0:02:59.9]} 3. Bg2 {[%clk 0:03:01.5]} 3... f6 {[%clk 0:03:00.1]} 4. c4
{[%clk 0:02:47.8]} 4... d4 {[%clk 0:03:00]} 5. e3 {[%clk 0:02:48.2]} 5... e5
{[%clk 0:02:59.8]} 6. O-O {[%clk 0:02:47.6]} 6... Bd6 {[%clk 0:02:58.7]} 7. b4
{[%clk 0:02:42.3]} 7... Nc6 {[%clk 0:02:58]} 8. bxc5 {[%clk 0:02:40]} 8... Bxc5
{[%clk 0:02:57.9]} 9. exd4 {[%clk 0:02:36.7]} 9... Nxd4 {[%clk 0:02:57.6]} 10.
Ba3 {[%clk 0:02:32.2]} 10... Bxa3 {[%clk 0:02:54]} 11. Nxa3 {[%clk 0:02:29.8]}
11... Ne7 {[%clk 0:02:53.3]} 12. Nxd4 {[%clk 0:02:28.1]} 12... Qxd4 {[%clk
0:02:52.7]} 13. Nb5 {[%clk 0:02:25.2]} 13... Qc5 {[%clk 0:02:52.7]} 14. d4
{[%clk 0:02:18.5]} 14... exd4 {[%clk 0:02:52.2]} 15. Re1 {[%clk 0:02:05.1]}
15... Kf7 {[%clk 0:02:51]} 16. Qxd4 {[%clk 0:02:04.6]} 16... Qxd4 {[%clk
0:02:50.6]} 17. Nxd4 {[%clk 0:02:05.2]} 17... Rd8 {[%clk 0:02:45.2]} 18. Nb5
{[%clk 0:02:02]} 18... a6 {[%clk 0:02:27.5]} 19. Nc7 {[%clk 0:01:57.8]} 19...
Rb8 {[%clk 0:02:27.4]} 20. Rab1 {[%clk 0:01:55]} 20... b6 {[%clk 0:02:22.8]} 21.
a4 {[%clk 0:01:05]} 21... Bf5 {[%clk 0:02:09.9]} 22. Rb2 {[%clk 0:00:55.6]}
22... a5 {[%clk 0:02:07.7]} 23. Na6 {[%clk 0:00:39.3]} 23... Rbc8 {[%clk
0:02:02.5]} 24. Rxb6 {[%clk 0:00:32.9]} 24... Rxc4 {[%clk 0:02:02.3]} 25. Rb5
{[%clk 0:00:22.1]} 25... Rxa4 {[%clk 0:01:56.4]} 26. Nc5 {[%clk 0:00:17.1]}
26... Rb4 {[%clk 0:01:46.9]} 27. Rxa5 {[%clk 0:00:16.6]} 27... Rdb8 {[%clk
0:01:45.6]} 28. Na6 {[%clk 0:00:15.3]} 28... Rb1 {[%clk 0:01:44.5]} 29. Ra1
{[%clk 0:00:13.8]} 29... Rxa1 {[%clk 0:01:43.8]} 30. Rxa1 {[%clk 0:00:13.5]}
30... Rc8 {[%clk 0:01:41.4]} 31. Nb4 {[%clk 0:00:12.5]} 31... g5 {[%clk
0:01:37.6]} 32. h3 {[%clk 0:00:11.6]} 32... h5 {[%clk 0:01:37.1]} 33. Ra7 {[%clk
0:00:10.7]} 33... Ke6 {[%clk 0:01:33.9]} 34. Na6 {[%clk 0:00:08.1]} 34... Kd6
{[%clk 0:01:31.3]} 35. Nb4 {[%clk 0:00:07.8]} 35... Rb8 {[%clk 0:01:25.9]} 36.
Ra6+ {[%clk 0:00:07.5]} 36... Ke5 {[%clk 0:01:25.4]} 37. Nc6+ {[%clk 0:00:07.6]}
37... Nxc6 {[%clk 0:01:24.5]} 38. Rxc6 {[%clk 0:00:08.2]} 38... Rb5 {[%clk
0:01:20.4]} 39. Bf1 {[%clk 0:00:07.9]} 39... Rb1 {[%clk 0:01:19.9]} 40. Rc5+
{[%clk 0:00:07.6]} 40... Ke6 {[%clk 0:01:19.9]} 41. Kg2 {[%clk 0:00:06.2]} 41...
Bxh3+ {[%clk 0:01:18.7]} 42. Kxh3 {[%clk 0:00:06.1]} 42... Rxf1 {[%clk
0:01:19.3]} 43. Kg2 {[%clk 0:00:06.3]} 43... Rb1 {[%clk 0:01:17.2]} 44. Ra5
{[%clk 0:00:06.8]} 44... Rd1 {[%clk 0:01:16.4]} 45. Rb5 {[%clk 0:00:06.9]} 45...
Rd5 {[%clk 0:01:16]} 46. Rb4 {[%clk 0:00:06.3]} 46... Kf5 {[%clk 0:01:16.1]} 47.
Kf3 {[%clk 0:00:06.4]} 47... Re5 {[%clk 0:01:15.6]} 48. Kg2 {[%clk 0:00:06.4]}
48... Re4 {[%clk 0:01:15.8]} 49. Rb5+ {[%clk 0:00:06.9]} 49... Kg6 {[%clk
0:01:16]} 50. Ra5 {[%clk 0:00:06.8]} 50... g4 {[%clk 0:01:14]} 51. Rb5 {[%clk
0:00:06.3]} 51... Re5 {[%clk 0:01:14.2]} 52. Rb4 {[%clk 0:00:06.4]} 52... Kg5
{[%clk 0:01:14.6]} 53. Rb8 {[%clk 0:00:06.7]} 53... Rd5 {[%clk 0:01:11]} 54.
Rg8+ {[%clk 0:00:06.7]} 54... Kh6 {[%clk 0:01:11.1]} 55. Rh8+ {[%clk 0:00:06.9]}
55... Kg7 {[%clk 0:01:10.8]} 56. Ra8 {[%clk 0:00:07.5]} 56... Rd6 {[%clk
0:01:09.3]} 57. Ra7+ {[%clk 0:00:07.3]} 57... Kg6 {[%clk 0:01:09.3]} 58. Ra8
{[%clk 0:00:08.2]} 58... f5 {[%clk 0:01:09.3]} 59. Rg8+ {[%clk 0:00:08.4]} 59...
Kf6 {[%clk 0:01:09.1]} 60. Rh8 {[%clk 0:00:08.2]} 60... Kg5 {[%clk 0:01:09.2]}
61. Rg8+ {[%clk 0:00:08.5]} 61... Rg6 {[%clk 0:01:09.4]} 62. Rf8 {[%clk
0:00:08.5]} 62... Rg7 {[%clk 0:01:08.7]} 63. f4+ {[%clk 0:00:05.9]} 63... Kg6
{[%clk 0:01:06.5]} 64. Ra8 {[%clk 0:00:04.6]} 64... Re7 {[%clk 0:01:03.6]} 65.
Ra6+ {[%clk 0:00:04.7]} 65... Kg7 {[%clk 0:01:03.9]} 66. Rb6 {[%clk 0:00:04.8]}
66... Re2+ {[%clk 0:01:03.3]} 67. Kf1 {[%clk 0:00:05]} 67... Rc2 {[%clk
0:01:02.3]} 68. Kg1 {[%clk 0:00:05]} 68... h4 {[%clk 0:01:02.3]} 69. gxh4 {[%clk
0:00:05.1]} 69... Rc4 {[%clk 0:01:02.5]} 70. h5 {[%clk 0:00:02.3]} 70... Rxf4
{[%clk 0:01:02.2]} 71. h6+ {[%clk 0:00:02.9]} 71... Kh7 {[%clk 0:01:02.3]} 72.
Kg2 {[%clk 0:00:03.4]} 72... Rf3 {[%clk 0:01:00.9]} 73. Rf6 {[%clk 0:00:03.1]}
73... f4 {[%clk 0:00:59.6]} 74. Kh2 {[%clk 0:00:02.9]} 74... Rh3+ {[%clk
0:00:59.2]} 75. Kg2 {[%clk 0:00:03.1]} 75... f3+ {[%clk 0:00:59.5]} 76. Kf2
{[%clk 0:00:03.6]} 76... Rh2+ {[%clk 0:00:59.3]} 77. Kg3 {[%clk 0:00:03.9]}
77... Rg2+ {[%clk 0:00:58.9]} 78. Kh4 {[%clk 0:00:03.5]} 78... f2 {[%clk
0:00:50.5]} 79. Kg5 {[%clk 0:00:03.7]} 79... g3 {[%clk 0:00:48.7]} 80. Rf7+
{[%clk 0:00:04]} 80... Kg8 {[%clk 0:00:48.9]} 81. Kg6 {[%clk 0:00:04.3]} 81...
Rh2 {[%clk 0:00:49]} 82. Rg7+ {[%clk 0:00:04.6]} 82... Kf8 {[%clk 0:00:48]} 83.
Rf7+ {[%clk 0:00:04.9]} 83... Ke8 {[%clk 0:00:48.3]} 84. Rf3 {[%clk 0:00:04.5]}
84... g2 {[%clk 0:00:47.6]} 85. Rxf2 {[%clk 0:00:04.6]} 85... g1=Q+ {[%clk
0:00:48]} 0-1

[Event "Late-Titled-Tuesday-Blitz-March-05-2024"]
[Site "Chess.com"]
[Date "2024.03.05"]
[Round "7"]
[White "Abund"]
[Black "reevecanada"]
[Result "1-0"]
[WhiteElo "2800"]
[BlackElo "2617"]
[TimeControl "180+1"]
[EndTime "15:16:03 PST"]
[Termination "Abund won on time"]

1. Nf3 {[%clk 0:02:57.3]} 1... d5 {[%clk 0:02:57.3]} 2. d4 {[%clk 0:02:57.4]}
2... Nf6 {[%clk 0:02:55.9]} 3. c3 {[%clk 0:02:54.5]} 3... g6 {[%clk 0:02:56.4]}
4. Bf4 {[%clk 0:02:54.4]} 4... Bg7 {[%clk 0:02:56.8]} 5. e3 {[%clk 0:02:54.8]}
5... O-O {[%clk 0:02:57.4]} 6. h3 {[%clk 0:02:54]} 6... c5 {[%clk 0:02:57.9]} 7.
Nbd2 {[%clk 0:02:52.4]} 7... Nbd7 {[%clk 0:02:58.4]} 8. Be2 {[%clk 0:02:52.1]}
8... a6 {[%clk 0:02:58.9]} 9. a4 {[%clk 0:02:48]} 9... b6 {[%clk 0:02:58.8]} 10.
O-O {[%clk 0:02:48.1]} 10... Bb7 {[%clk 0:02:56.8]} 11. Qb3 {[%clk 0:02:44.6]}
11... Bc6 {[%clk 0:02:53.7]} 12. Rfc1 {[%clk 0:02:40.8]} 12... c4 {[%clk
0:02:51.1]} 13. Qa3 {[%clk 0:02:40.8]} 13... Re8 {[%clk 0:02:50.3]} 14. Rab1
{[%clk 0:02:36.5]} 14... b5 {[%clk 0:02:49.6]} 15. b3 {[%clk 0:02:28.4]} 15...
Bf8 {[%clk 0:02:45.6]} 16. Qa2 {[%clk 0:02:22.6]} 16... cxb3 {[%clk 0:02:42.3]}
17. Rxb3 {[%clk 0:02:12.4]} 17... bxa4 {[%clk 0:02:41.5]} 18. Rb2 {[%clk
0:02:08.3]} 18... e6 {[%clk 0:02:32.8]} 19. c4 {[%clk 0:01:58.2]} 19... a3
{[%clk 0:02:31]} 20. Rb3 {[%clk 0:01:52.5]} 20... Ba4 {[%clk 0:02:27]} 21. Rbb1
{[%clk 0:01:51.6]} 21... dxc4 {[%clk 0:02:18]} 22. Nxc4 {[%clk 0:01:52]} 22...
Bb5 {[%clk 0:02:15.6]} 23. Bf1 {[%clk 0:01:42.4]} 23... Nd5 {[%clk 0:02:10.5]}
24. Bg5 {[%clk 0:01:30.5]} 24... Bxc4 {[%clk 0:02:03.1]} 25. Bxc4 {[%clk
0:01:30.2]} 25... Qa5 {[%clk 0:02:00.8]} 26. Bxd5 {[%clk 0:01:03.7]} 26... Qxd5
{[%clk 0:01:55.1]} 27. Qa1 {[%clk 0:00:57]} 27... Rec8 {[%clk 0:01:42.8]} 28.
Bf4 {[%clk 0:00:56.1]} 28... a2 {[%clk 0:01:36.6]} 29. Rb2 {[%clk 0:00:29.9]}
29... Rxc1+ {[%clk 0:01:31.2]} 30. Qxc1 {[%clk 0:00:30.8]} 30... Ba3 {[%clk
0:01:30.5]} 31. Nd2 {[%clk 0:00:27.5]} 31... Bxb2 {[%clk 0:01:28.1]} 32. Qxb2
{[%clk 0:00:27.7]} 32... Rc8 {[%clk 0:01:28.3]} 33. Kh2 {[%clk 0:00:21.4]} 33...
Qa5 {[%clk 0:01:27.1]} 34. Nb3 {[%clk 0:00:17.3]} 34... Qa4 {[%clk 0:01:26]} 35.
h4 {[%clk 0:00:12.7]} 35... e5 {[%clk 0:01:22]} 36. dxe5 {[%clk 0:00:10.4]}
36... Rb8 {[%clk 0:01:22.1]} 37. e6 {[%clk 0:00:09]} 37... Rxb3 {[%clk
0:01:20.4]} 38. exd7 {[%clk 0:00:09.6]} 38... Qxd7 {[%clk 0:00:20.1]} 39. Qxb3
{[%clk 0:00:09.5]} 39... a1=Q {[%clk 0:00:19.6]} 40. Qb8+ {[%clk 0:00:09.5]}
40... Kg7 {[%clk 0:00:20.2]} 41. Be5+ {[%clk 0:00:09.8]} 41... Qxe5+ {[%clk
0:00:20.2]} 42. Qxe5+ {[%clk 0:00:10.5]} 42... f6 {[%clk 0:00:19.2]} 43. Qa5
{[%clk 0:00:08.1]} 43... Qb7 {[%clk 0:00:18.1]} 44. g3 {[%clk 0:00:04.8]} 44...
Qf3 {[%clk 0:00:16.8]} 45. Kg1 {[%clk 0:00:03.8]} 45... Qd1+ {[%clk 0:00:15.8]}
46. Kg2 {[%clk 0:00:03.5]} 46... Qd3 {[%clk 0:00:16.1]} 47. Qc7+ {[%clk
0:00:03.7]} 47... Kh6 {[%clk 0:00:15.9]} 48. Qf4+ {[%clk 0:00:04]} 48... Kg7
{[%clk 0:00:16.1]} 49. Qc7+ {[%clk 0:00:04.4]} 49... Kg8 {[%clk 0:00:16.2]} 50.
Qc6 {[%clk 0:00:04.1]} 50... Kf7 {[%clk 0:00:14.8]} 51. Qb7+ {[%clk 0:00:04.5]}
51... Kg8 {[%clk 0:00:14.6]} 52. Qe7 {[%clk 0:00:04.3]} 52... Qd5+ {[%clk
0:00:13.6]} 53. e4 {[%clk 0:00:04.5]} 53... Qc6 {[%clk 0:00:13.7]} 54. Kh2
{[%clk 0:00:03.5]} 54... a5 {[%clk 0:00:13.4]} 55. Qd8+ {[%clk 0:00:03.7]} 55...
Kg7 {[%clk 0:00:13]} 56. Qe7+ {[%clk 0:00:04.2]} 56... Kh6 {[%clk 0:00:12]} 57.
Qf8+ {[%clk 0:00:03.8]} 57... Kh5 {[%clk 0:00:11.5]} 58. f3 {[%clk 0:00:03.6]}
58... f5 {[%clk 0:00:02.4]} 59. exf5 {[%clk 0:00:01.7]} 59... Qxf3 {[%clk
0:00:01.5]} 60. Qe7 {[%clk 0:00:01.9]} 1-0